Cogmind - Beta 13 X1 @@@ ROGUE MODE // 2023.07.30 @ 05:26:24 Player: CatPlusPlus Result: Destroyed by as-35945 with Assembled F-torch Performance ------------- Evolutions (3) 1500 Regions Visited (10) 2000 Robots Destroyed (85) 425 Value Destroyed (2517) 2517 Prototype IDs (40) 800 Alien Tech Used (0) 0 Bonus (1087) 1087 TOTAL SCORE: 8329 Bonus ------- Aligned with FarCom 300 Met Imprinter 300 Triggered Deep Caves Wall 500 Friendly Fire -13 Cogmind --------- Core Integrity 0/700 Matter 222/300 Energy 98/100 System Corruption 0% Temperature Cool (12) Movement Walking (203) Ox1 Location -7/Deep Caves Parts ------- > --- POWER (1) -------- Zionite Light DM Reactor > --- PROPULSION (5) --- Improved Titanium Leg Improved Titanium Leg Zionite Composite Leg I > --- UTILITY (5) ------ Experimental Heat Sink Huge Storage Unit Improved Light Armor Plating Hardlight Generator > --- WEAPON (2) ------- Heavy Rocket Launcher Heavy Missile Launcher > --- INVENTORY (25) --- Micro Nuclear Core Experimental Heat Sink Improved Sensor Array Improved Terrain Scanner Improved Targeting Computer Core Analyzer Transmission Jammer Improved Light Armor Plating Long-range Tractor Beam Mobile Refinery Mk. CCLXVII Hacking Drone Bay (1/1) Phasing AFG Zionite Laser-S Zionite Laser-S Improved EM Pulse Cannon Gauss Cannon Shock Bomb Launcher Impact Mace CR-A16's Pointy Stick Peak State ------------ > --- POWER ------------ Zionite Light DM Reactor > --- PROPULSION ------- Improved Titanium Leg Improved Titanium Leg Improved Titanium Leg Improved Titanium Leg Zionite Composite Leg I > --- UTILITY ---------- Experimental Heat Sink Huge Storage Unit Zionite Weapon Casing Zionite Light Carapace Zionite Light Carapace > --- WEAPON ----------- Zionite Laser-S Gauss Cannon > --- INVENTORY -------- Micro Nuclear Core Makeshift Power Source Experimental Heat Sink Improved Sensor Array Improved Terrain Scanner Improved Targeting Computer Core Analyzer Transmission Jammer Phase Shifter Improved Light Armor Plating Hardlight Generator Long-range Tractor Beam Mobile Refinery Mk. CCLXVII Bomb Drone Bay Hacking Drone Bay Phasing AFG Improved EM Pulse Cannon Latent Energy Streamer Assault Cannon Shock Bomb Launcher Heavy Rocket Launcher Heavy Missile Launcher Impact Mace CR-A16's Pointy Stick [Rating: 78] Favorites ----------- Power Light Deuterium Engine Engine Light Deuterium Engine Power Core Micro Nuclear Core Reactor Zionite Light DM Reactor Propulsion Improved Titanium Leg Treads Light Treads Leg Improved Titanium Leg Flight Unit Improved Flight Unit Utility Huge Storage Unit Device Improved Terrain Scanner Storage Huge Storage Unit Processor Terrain Scan Processor Protection Improved Light Armor Plating Weapon Impact Mace Energy Gun EM Pulse Gun Energy Cannon Plasma Cannon Ballistic Gun Enhanced Autogun Ballistic Cannon Gauss Cannon Launcher Heavy Rocket Launcher Special Weapon Mining Laser Impact Weapon Impact Mace Slashing Weapon Great Axe Piercing Weapon Spear Build | -11 -10 -10 -10 -9 -8 -7 -7 -7 -7 -7 ------- Run | Jun Mat Min Exi Min Mat Fac Low Low Zio Dee Slots Evolved 6 | . . . . . 4 2 . . . . Power . | . . . . . . . . . . . Propulsion 3 | . . . . . 2 1 . . . . Utility 3 | . . . . . 2 1 . . . . Weapon . | . . . . . . . . . . . Parts Attached 192 | 2 13 1 6 10 20 72 5 8 18 37 Power 13 | . 1 . . 2 . 4 . . 1 5 Engine 9 | . 1 . . 2 . 4 . . 1 1 Core 1 | . . . . . . . . . . 1 Reactor 3 | . . . . . . . . . . 3 Propulsion 19 | . 2 . . . 4 9 . 1 1 2 Treads 9 | . 2 . . . 3 4 . . . . Leg 9 | . . . . . . 5 . 1 1 2 Wheel . | . . . . . . . . . . . Hover . | . . . . . . . . . . . Flight 1 | . . . . . 1 . . . . . Utility 88 | 1 3 . 4 1 11 39 4 . 11 14 Device 46 | 1 1 . 1 . 5 23 4 . 7 4 Storage 6 | . 2 . 3 . 1 . . . . . Processor 5 | . . . . . 1 3 . . 1 . Hackware . | . . . . . . . . . . . Protection 31 | . . . . 1 4 13 . . 3 10 Artifact . | . . . . . . . . . . . Weapon 72 | 1 7 1 2 7 5 20 1 7 5 16 Energy Gun 7 | 1 2 . 1 1 . 1 . . . 1 Energy Cannon 8 | . . . . . . 1 . 2 1 4 Ballistic Gun 4 | . . . . . 1 3 . . . . Ballistic Cannon 14 | . . . . 3 . 5 . 3 2 1 Launcher 14 | . 2 1 1 1 . 1 . . 1 7 Special Weapon 4 | . . . . 1 2 . . . 1 . Impact Weapon 19 | . 3 . . 1 2 7 1 2 . 3 Slashing Weapon 1 | . . . . . . 1 . . . . Piercing Weapon 1 | . . . . . . 1 . . . . Special Melee Weapon . | . . . . . . . . . . . Unidentified Prototypes 15 | . . . . . 3 2 . . 3 7 Parts Lost 19 | . 1 . . 2 . 2 . . . 14 Power 4 | . 1 . . 1 . . . . . 2 Propulsion 6 | . . . . . . 2 . . . 4 Utility 8 | . . . . 1 . . . . . 7 Weapon 1 | . . . . . . . . . . 1 Highest Loss Streak 3 | . 1 . . 1 . 1 . . . 3 To Critical Strikes . | . . . . . . . . . . . Average Slot Usage (%) 95 | . 100 100 74 89 96 98 99 99 96 96 Engine 8 | . 14 14 14 13 9 7 7 7 7 1 Treads 14 | . 13 28 28 28 34 26 . . . . Leg 20 | . 14 . . . . 10 38 37 38 36 Device 10 | . 14 14 14 . 9 10 14 15 7 9 Storage 9 | . 14 14 13 14 9 7 7 7 7 7 Processor 7 | . . . . . 8 8 15 15 15 3 Protection 5 | . . . . 3 6 10 . . 3 16 Energy Gun 2 | . 23 14 1 4 . . . . . . Energy Cannon 2 | . . . . . . 6 . . . 6 Ballistic Cannon 3 | . . . . 11 3 1 . 4 6 2 Launcher 2 | . . 13 2 5 . . 7 4 . 4 Impact Weapon 4 | . 4 . . 6 6 4 6 5 6 . Naked Turns . | . . . . . . . . . . . Heaviest Build 117 | 15 30 32 52 52 95 112 101 101 116 117 Greatest Support 104 | 20 40 40 40 40 80 102 100 80 100 104 Greatest Overweight (x) 2 | . . . 1 1 1 2 1 1 1 1 Average Overweight (x) . | . . . . 1 . . . 1 . . Largest Inventory Capacity 35 | 8 15 15 35 20 25 25 25 25 25 25 Average Capacity 22 | 8 11 15 17 20 23 25 25 25 25 25 Most Carried 25 | 7 15 15 19 20 25 25 25 25 25 25 Average Carried 21 | 5 10 14 15 19 22 24 25 24 24 24 Final Capacity 25 | 8 15 15 20 20 25 25 25 25 25 25 Final Carried 25 | 7 15 15 17 20 25 25 25 25 25 19 Class Distribution -------------------- 45% | Mutant 23% | Scavenger-Mutant 17% | Assassin 11% | Scavenger-Assassin Dominant Class ---------------- Mutant | -10/Materials Mutant | -10/Mines Mutant | -10/Exiles Mutant | -9/Mines Scavenger-Assassin | -8/Materials Scavenger-Mutant | -7/Factory Assassin | -7/Lower Caves Assassin | -7/Lower Caves Scavenger-Mutant | -7/Zion Mutant | -7/Deep Caves Resources | -11 -10 -10 -10 -9 -8 -7 -7 -7 -7 -7 ----------- Run | Jun Mat Min Exi Min Mat Fac Low Low Zio Dee Matter Collected 3375 | 220 240 27 17 451 178 1067 120 213 308 534 Remotely 547 | . . . . . . 192 . . 65 290 Salvage Created 3408 | 70 254 . . 681 109 1095 . . 265 934 Parts 164 | 3 28 . . 36 6 53 . . 21 17 Haulers Intercepted 5 | . 1 . . . 2 2 . . . . Recyclers Shooed 3 | . . . . 2 . 1 . . . . Parts Field Recycled 10 | . . . . . 10 . . . . . Retrieved Matter 34 | . . . . . 34 . . . . . Parts Self-Destructed . | . . . . . . . . . . . Prevented . | . . . . . . . . . . . Kills | -11 -10 -10 -10 -9 -8 -7 -7 -7 -7 -7 ------- Run | Jun Mat Min Exi Min Mat Fac Low Low Zio Dee Combat Hostiles Destroyed 81 | . 6 . . 19 1 12 . . 3 40 Melee 1 | . . . . 1 . . . . . . Guns 1 | . . . . . . . . . . 1 Cannons 37 | . . . . 14 1 12 . . 2 8 AOE 37 | . 6 . . 4 . . . . 1 26 Classes Destroyed 15 | 2 4 . . 2 1 2 . . 2 2 Worker 2 | . 1 . . . . 1 . . . . Tunneler 5 | 1 . . . 4 . . . . . . Hauler 5 | . 1 . . . 2 2 . . . . Recycler 10 | 1 1 . . 3 . 5 . . . . Watcher 5 | . 3 . . . . 2 . . . . Swarmer 10 | . 6 . . 4 . . . . . . Grunt 18 | . . . . 14 . 4 . . . . Sentry 3 | . . . . . . 3 . . . . Hunter 1 | . . . . . 1 . . . . . Programmer 5 | . . . . . . 5 . . . . Zionite 10 | . . . . . . . . . 10 . Z-Light 6 | . . . . . . . . . . 6 Assembled 32 | . . . . 1 . . . . . 31 Golem 3 | . . . . . . . . . . 3 Mutant 2 | . . . . . . . . . 2 . Best Kill Streak 25 | 2 6 . . 4 2 3 . . 3 25 Combat Bots Only 25 | . 3 . . 4 1 2 . . 1 25 Max Kills in Single Turn 16 | 1 4 . . 2 1 1 . . 2 16 Gunslinging . | . . . . . . . . . . . Exploded 16 | . 3 . . 2 . . . . 1 16 Melee 1 | . . . . 1 . . . . . . Uniques/NPCs Destroyed 1 | . . . . . . . . . 1 . Imprinter (-7/Zion) Combat | -11 -10 -10 -10 -9 -8 -7 -7 -7 -7 -7 -------- Run | Jun Mat Min Exi Min Mat Fac Low Low Zio Dee Damage Taken 5130 | . 116 . . 589 90 886 . 5 284 3160 Core 866 | . 7 . . 157 . 100 . 5 74 523 Absorbed by Shields 340 | . . . . . . 44 . . . 296 Redirected to Shielding 379 | . . . . 39 . 3 . . . 337 Ignored by Resistances 69 | . . . . . . 69 . . . . Core Remaining (%) 78 | 100 . . . 34 100 . . . . . Volleys Fired 308 | 12 17 . . 56 22 83 . 11 35 72 Largest 2 | 1 2 . . 2 2 2 . 1 2 2 Hottest 128 | 50 90 . . 70 100 128 . 69 128 128 Shots Fired 388 | 12 24 . . 64 34 118 . 11 36 89 Gun 68 | 12 20 . . 15 . 13 . . . 8 Cannon 277 | . . . . 45 28 105 . 10 20 69 Launcher 37 | . 4 . . 4 . . . 1 16 12 Special 6 | . . . . . 6 . . . . . Kinetic 164 | . . . . 45 28 40 . 8 18 25 Thermal 145 | 12 12 . . 6 6 78 . . 2 29 Explosive 13 | . 4 . . 4 . . . 1 . 4 Electromagnetic 66 | . 8 . . 9 . . . 2 16 31 Robot Hit Streak 13 | 6 5 . . 13 9 8 . 3 4 12 Robot Miss Streak 5 | 1 2 . . 3 3 5 . 1 4 3 Penetration Max 1 | . . . . . . . . . . 1 Secondary Targets . | . . . . . . . . . . . Shots Hit Robots 238 | 10 12 . . 48 17 77 . 2 17 55 Core Hits 154 | 2 14 . . 25 5 26 . 1 14 67 Critical Kills 2 | . . . . . . . . . . 2 Critical Parts Destroyed 3 | . . . . 1 . 1 . . . 1 Critical Strikes 16 | 1 . . . 4 1 3 . . 2 5 Burn 2 | 1 . . . 1 . . . . . . Meltdown 2 | . . . . . . . . . . 2 Blast 8 | . . . . 1 1 2 . . 2 2 Corrupt 1 | . . . . 1 . . . . . . Smash 3 | . . . . 1 . 1 . . . 1 Melee Attacks 95 | . 3 . . 27 8 25 6 4 13 9 Impact 95 | . 3 . . 27 8 25 6 4 13 9 Slashing . | . . . . . . . . . . . Piercing . | . . . . . . . . . . . Sneak Attacks 7 | . . . . 3 . 4 . . . . Combat Hostiles . | . . . . . . . . . . . Follow-up Attacks . | . . . . . . . . . . . Damage Inflicted 8920 | 127 564 . . 1151 271 2423 . 46 578 3760 Guns 725 | 127 186 . . 134 . 166 . . . 112 Cannons 4231 | . . . . 587 271 1867 . 46 286 1174 Explosions 3081 | . 378 . . 197 . . . . 292 2214 Melee 852 | . . . . 220 . 372 . . . 260 Ramming 31 | . . . . 13 . 18 . . . . Kinetic 2359 | . . . . 587 271 746 . . 259 496 Thermal 2080 | 127 74 . . 69 . 1287 . . 51 472 Explosive 2533 | . 378 . . 166 . . . . . 1989 Electromagnetic 1065 | . 112 . . 96 . . . 46 268 543 Impact 852 | . . . . 220 . 372 . . . 260 Slashing . | . . . . . . . . . . . Piercing . | . . . . . . . . . . . Highest Corruption 3 | . 1 1 1 1 . 3 3 3 3 . Average Corruption 1 | . 1 1 1 1 . 1 3 3 3 . Corruption Purged 1 | . . . . . . 1 . . . . Corruption Blocked . | . . . . . . . . . . . Effects 87 | . 5 6 7 5 . 14 26 19 5 . Message Errors 15 | . 1 1 1 . . 2 5 4 1 . Matter Fused 23 | . 1 1 5 . . 4 5 6 1 . Heat Flow Errors 14 | . 2 1 . . . 4 2 4 1 . Energy Discharges 17 | . 1 1 1 1 . 2 8 2 1 . Data Loss (minor) 13 | . . 2 . 3 . 1 5 1 1 . Data Loss (major) 2 | . . . . 1 . . . 1 . . Misfires 1 | . . . . . . 1 . . . . Alerts 2 | . . . . . . . 1 1 . . Overload Shots . | . . . . . . . . . . . Overflow Damage 720 | . 7 . . 123 . 256 . . 4 330 Projectiles 121 | . . . . 10 . 83 . . 4 24 Explosions 132 | . 7 . . 21 . . . . . 104 Melee 467 | . . . . 92 . 173 . . . 202 Knockbacks 26 | . . . . 8 2 7 . . . 9 Impact 4 | . . . . 2 . 1 . . . 1 Kinetic 21 | . . . . 6 2 6 . . . 7 Secondary 1 | . . . . . . . . . . 1 Self-Inflicted Damage 10 | . . . . 7 . . . . 3 . Shots 2 | . . . . 1 . . . . 1 . Rammed 3 | . . . . 1 . 2 . . . . Targets Rammed 3 | . . . . 1 . 2 . . . . Kicked . | . . . . . . . . . . . Crushed . | . . . . . . . . . . . Highest Temperature 396 | 110 159 159 . 40 . 396 240 220 243 159 Average Temperature 67 | 51 35 80 . 10 . 89 113 80 73 41 Received Heat Transfer 1104 | . . . . 138 . 241 . . 63 662 Effects 1 | . . . . . . 1 . . . . Matter Decay 1 | . . . . . . 1 . . . . Siege Activations . | . . . . . . . . . . . Robots Corrupted 3 | . . . . . . . . . . 3 Combat Hostiles 3 | . . . . . . . . . . 3 Parts Fried 14 | . 1 . . 5 . 6 . . 1 1 Impact Corruptions 18 | . . . . 5 . 5 . . . 8 Robots Melted 3 | 1 . . . . . . . . . 2 Combat Hostiles 2 | . . . . . . . . . . 2 Parts Melted 12 | 3 . . . . . 2 . . 1 6 Heat Transferred 4099 | 444 222 . . 235 . 2300 . . 100 798 Parts Sabotaged . | . . . . . . . . . . . Parts Stolen 1 | . . . . . . . . 1 . . Parts Stripped . | . . . . . . . . . . . Power Chain Reactions 4 | . . . . 1 . . . . 2 1 Missiles Intercepted . | . . . . . . . . . . . Alert | -11 -10 -10 -10 -9 -8 -7 -7 -7 -7 -7 ------- Run | Jun Mat Min Exi Min Mat Fac Low Low Zio Dee Peak Influence 252 | 10 244 . . 248 122 252 . . . . Initial 58 | . 6 . . . 58 . . . . . Average 57 | 5 39 . . 101 42 64 . . . . Maximum Alert Level 1 | . 1 . . 1 . 1 . . . . Low Security (%) 89 | 100 92 100 . 72 100 90 . . . . Level 1 10 | . 7 . . 27 . 9 . . . . Level 2 . | . . . . . . . . . . . Level 3 . | . . . . . . . . . . . Level 4 . | . . . . . . . . . . . Level 5 . | . . . . . . . . . . . High Security . | . . . . . . . . . . . Max Security . | . . . . . . . . . . . Squads Dispatched 11 | . . . . . 1 10 . . . . Investigation 1 | . . . . . . 1 . . . . Extermination 5 | . . . . . . 5 . . . . Reinforcement 4 | . . . . . 1 3 . . . . Assault . | . . . . . . . . . . . Garrison 1 | . . . . . . 1 . . . . Intercept . | . . . . . . . . . . . Searches Triggered . | . . . . . . . . . . . Construction Impeded . | . . . . . . . . . . . Haulers Reinforced 2 | . . . . . . 2 . . . . Active Scanning Responses . | . . . . . . . . . . . Cargo Convoy Interrupts . | . . . . . . . . . . . Stealth | -11 -10 -10 -10 -9 -8 -7 -7 -7 -7 -7 --------- Run | Jun Mat Min Exi Min Mat Fac Low Low Zio Dee Distress Signals 2 | . . . . 2 . . . . . . Communications Jammed . | . . . . . . . . . . . Distress Signals . | . . . . . . . . . . . Times Spotted 122 | . 9 . . 16 6 22 . 1 10 58 Peak Tracking Total 37 | . 4 . . 3 4 2 . 1 2 37 Tactical Retreats 12 | . . . . . . 3 . . 2 7 Traps | -11 -10 -10 -10 -9 -8 -7 -7 -7 -7 -7 ------- Run | Jun Mat Min Exi Min Mat Fac Low Low Zio Dee Traps Triggered 2 | . 1 . . . . 1 . . . . Indirectly . | . . . . . . . . . . . Trap Hack Attempts . | . . . . . . . . . . . Triggered . | . . . . . . . . . . . Disarmed . | . . . . . . . . . . . Reprogrammed . | . . . . . . . . . . . Reused . | . . . . . . . . . . . Traps Extracted . | . . . . . . . . . . . Installed . | . . . . . . . . . . . Triggered . | . . . . . . . . . . . Machines | -11 -10 -10 -10 -9 -8 -7 -7 -7 -7 -7 ---------- Run | Jun Mat Min Exi Min Mat Fac Low Low Zio Dee Machines Disabled 8 | . . . . . . 3 . . 3 2 Max in Single Turn 1 | . . . . . . 1 . . 1 1 Machines Repaired . | . . . . . . . . . . . Machines Sabotaged . | . . . . . . . . . . . Overloaded Fab Kills . | . . . . . . . . . . . Hacking | -11 -10 -10 -10 -9 -8 -7 -7 -7 -7 -7 --------- Run | Jun Mat Min Exi Min Mat Fac Low Low Zio Dee Machines Accessed 16 | . 5 . 2 1 2 5 . . 1 . Terminals 9 | . 4 . . . 2 3 . . . . Fabricators 1 | . . . . . . 1 . . . . Repair Stations . | . . . . . . . . . . . Recycling Units 1 | . 1 . . . . . . . . . Scanalyzers 1 | . . . . . . 1 . . . . Garrison Access . | . . . . . . . . . . . Total Hacks 78 | . 25 . 24 1 6 17 . . 5 . Successful 58 | . 11 . 24 1 3 14 . . 5 . Failed 20 | . 14 . . . 3 3 . . . . Catastrophic 3 | . 1 . . . . 2 . . . . Database Lockouts . | . . . . . . . . . . . Manual 24 | . 14 . 1 . 5 4 . . . . Terminals 31 | . 20 . . . 6 5 . . . . Fabricators 2 | . . . . . . 2 . . . . Repair Stations . | . . . . . . . . . . . Recycling Units 5 | . 5 . . . . . . . . . Scanalyzers 10 | . . . . . . 10 . . . . Garrison Access . | . . . . . . . . . . . Terminal Hacks 39 | . 7 . 24 1 1 1 . . 5 . Record 23 | . . . 23 . . . . . . . Part Schematic 5 | . . . . . . . . . 5 . Robot Analysis 3 | . 3 . . . . . . . . . Prototype ID Bank 1 | . 1 . . . . . . . . . Open Door 1 | . . . . 1 . . . . . . Unreport Threat 1 | . . . . . 1 . . . . . Locate Traps 2 | . 2 . . . . . . . . . Hauler Manifests 2 | . 1 . . . . 1 . . . . Derelict Proto ID Bank 1 | . . . 1 . . . . . . . Fabricator Hacks 2 | . . . . . . 2 . . . . Load Schematic 1 | . . . . . . 1 . . . . Build 1 | . . . . . . 1 . . . . Repair Station Hacks . | . . . . . . . . . . . Recycling Unit Hacks 1 | . 1 . . . . . . . . . Retrieve Components 1 | . 1 . . . . . . . . . Scanalyzer 10 | . . . . . . 10 . . . . Insert Component 5 | . . . . . . 5 . . . . Analyze 5 | . . . . . . 5 . . . . Garrison Access Hacks . | . . . . . . . . . . . Unauthorized Hacks 6 | . 3 . . . 2 1 . . . . Terminals 4 | . 1 . . . 2 1 . . . . Assimilate 2 | . . . . . 1 1 . . . . Botnet 2 | . 1 . . . 1 . . . . . Fabricators . | . . . . . . . . . . . Repair Stations . | . . . . . . . . . . . Recycling Units 2 | . 2 . . . . . . . . . Reject 1 | . 1 . . . . . . . . . Mask 1 | . 1 . . . . . . . . . Scanalyzers . | . . . . . . . . . . . Garrison Access . | . . . . . . . . . . . Data Cores Recovered . | . . . . . . . . . . . Used . | . . . . . . . . . . . Hacking Detections 12 | . 5 . . . 2 5 . . . . Full Trace Events 2 | . 1 . . . . 1 . . . . Feedback Events . | . . . . . . . . . . . Feedback Blocked . | . . . . . . . . . . . Robot Schematics Acquired . | . . . . . . . . . . . Robots Built . | . . . . . . . . . . . Authchips . | . . . . . . . . . . . Time . | . . . . . . . . . . . Total Robot Build Rating . | . . . . . . . . . . . Part Schematics Acquired 10 | . . . . . . 5 . . 5 . Parts Built 2 | . . . . . . 2 . . . . Authchips . | . . . . . . . . . . . Time 73 | . . . . . . 73 . . . . Total Part Build Rating 6 | . . . . . . 6 . . . . Parts Repaired . | . . . . . . . . . . . Time . | . . . . . . . . . . . Parts Recycled . | . . . . . . . . . . . Recycled Matter . | . . . . . . . . . . . Retrieved Matter . | . . . . . . . . . . . Retrieved Components 9 | . 9 . . . . . . . . . Parts Scanalyzed 5 | . . . . . . 5 . . . . Part Schematics Acquired 5 | . . . . . . 5 . . . . Parts Damaged . | . . . . . . . . . . . Bothacking | -11 -10 -10 -10 -9 -8 -7 -7 -7 -7 -7 ------------ Run | Jun Mat Min Exi Min Mat Fac Low Low Zio Dee Used RIF Installer . | . . . . . . . . . . . Robots Hacked . | . . . . . . . . . . . Non-combat . | . . . . . . . . . . . Combat . | . . . . . . . . . . . Robot Hacks Applied . | . . . . . . . . . . . Relay Couplers Released . | . . . . . . . . . . . Fabnet Peak Effective % . | . . . . . . . . . . . Robots Rewired . | . . . . . . . . . . . Allies Hacked . | . . . . . . . . . . . Hacks Repelled . | . . . . . . . . . . . Allies | -11 -10 -10 -10 -9 -8 -7 -7 -7 -7 -7 -------- Run | Jun Mat Min Exi Min Mat Fac Low Low Zio Dee Total Allies . | . . . . . . . . . . . Largest Group . | . . . . . . . . . . . Highest-Rated Group . | . . . . . . . . . . . Highest-Rated Ally . | . . . . . . . . . . . Total Orders 9 | . . . . . . . . . 9 . STAY 4 | . . . . . . . . . 4 . ROAM 2 | . . . . . . . . . 2 . FOLLOW 2 | . . . . . . . . . 2 . RETURN 1 | . . . . . . . . . 1 . Ally Attacks 5 | . . . . . . . . . 5 . Total Damage . | . . . . . . . . . . . Kills . | . . . . . . . . . . . Allies Corrupted . | . . . . . . . . . . . Allies Melted . | . . . . . . . . . . . Intel | -11 -10 -10 -10 -9 -8 -7 -7 -7 -7 -7 ------- Run | Jun Mat Min Exi Min Mat Fac Low Low Zio Dee Robot Analysis Total 3 | . 3 . . . . . . . . . Derelict Logs Recovered 2 | . . 1 . . . . 1 . . . Drone Launches 6 | . . . . . . . . . 6 . Drone Recoveries 1 | . . . . . . . . . 1 . Exploration | -11 -10 -10 -10 -9 -8 -7 -7 -7 -7 -7 ------------- Run | Jun Mat Min Exi Min Mat Fac Low Low Zio Dee Turns Passed 16968 | 77 1193 721 1330 1317 1021 3618 1375 1195 2975 2146 Spaces Moved 7597 | 39 760 424 686 438 372 1393 617 562 1388 918 Core . | . . . . . . . . . . . Treads 3262 | . 346 424 686 438 372 996 . . . . Legs 4335 | 39 414 . . . . 397 617 562 1388 918 Wheels . | . . . . . . . . . . . Hover . | . . . . . . . . . . . Flight . | . . . . . . . . . . . Fastest Speed 120 | 120 120 160 160 240 160 130 130 200 130 126 Average Speed 194 | 120 138 160 189 240 210 211 198 200 198 201 Slowest Speed 312 | 120 160 160 240 240 240 312 200 200 200 202 Overloaded Moves . | . . . . . . . . . . . Propulsion Burnouts . | . . . . . . . . . . . Robots Hopped . | . . . . . . . . . . . Cave-ins Triggered . | . . . . . . . . . . . Exploration Rate (%) 57 | 4 67 82 71 59 30 27 69 62 88 75 Regions Visited 10 Branch Regions 7 Pre-discovered Areas 2 | . . . 1 . . . . . 1 . Known Exits Taken 4 | . . . . . . 1 1 1 1 . Unknown Exits Taken 6 | 1 1 1 1 1 1 . . . . . Scrap Searched 9 | . . 1 . 1 . . 3 . 4 . Spaces Dug 79 | . 3 . . . 13 19 6 32 . 6 Terrain Destroyed 191 | . 37 . . 51 13 26 6 33 . 25 Melee 44 | . 3 . . . 7 19 6 3 . 6 Projectile 27 | . . . . . 6 7 . 9 . 5 AOE 120 | . 34 . . 51 . . . 21 . 14 Terrain Rammed . | . . . . . . . . . . . Walls Destroyed . | . . . . . . . . . . . Machines Disabled . | . . . . . . . . . . . Actions | -11 -10 -10 -10 -9 -8 -7 -7 -7 -7 -7 --------- Run | Jun Mat Min Exi Min Mat Fac Low Low Zio Dee Total 9208 | 57 876 467 719 591 558 1910 754 612 1557 1107 Wait 748 | . 49 41 . 47 92 257 125 27 64 46 Move 7587 | 38 759 423 685 437 371 1392 616 561 1387 918 Hop . | . . . . . . . . . . . Pick Up 127 | 3 21 1 18 8 22 26 . . 17 11 Fast Attach 46 | 1 . . 3 1 6 22 2 . 4 7 Attach 32 | . 1 . 2 2 7 3 . 1 5 11 Detach 12 | . . . . . 4 3 . 1 2 2 Swap 114 | 1 12 1 1 7 7 47 3 7 9 19 Drop 135 | 2 14 1 10 5 19 50 2 . 21 11 Fire 308 | 12 17 . . 56 22 83 . 11 35 72 Melee 95 | . 3 . . 27 8 25 6 4 13 9 Ram . | . . . . . . . . . . . Kick . | . . . . . . . . . . . Crush 3 | . . . . 1 . 2 . . . . Escape Stasis . | . . . . . . . . . . . Rewire 1 | . . . . . . . . . . 1 Trap . | . . . . . . . . . . . Miscellaneous . | . . . . . . . . . . . Route ------- -11/Junkyard -10/Materials (discovered 4 exits: [*Mat x2] / [*Min] / [*Sub]) -10/Mines (discovered 4 exits: [*Mat x2] / *Exi / [*Sub]) -10/Exiles (discovered 2 exits: *Min x2) -9/Mines -8/Materials -7/Factory (discovered 2 exits: *Fac / *Low) -7/Lower Caves -7/Lower Caves (discovered 2 exits: *Fac / *Zio) -7/Zion (discovered 2 exits: *Dee / *Pro) -7/Deep Caves (discovered 1 exit: [*Pro]) History --------- Turn | Location | Event 23 | -11/Junkyard | Discovered new exit (range 3) 78 | -11/Junkyard | Entered Materials 312 | -10/Materials | Build established: Mutant 372 | -10/Materials | Discovered new exit (range 4) 525 | -10/Materials | Discovered new exit (range 5) 628 | -10/Materials | Discovered new exit (range 15) 844 | -10/Materials | Discovered new exit (range 8) 1271 | -10/Materials | Entered Mines 1286 | -10/Mines | Met a Derelict bent on vengeance 1313 | -10/Mines | Deemed a non-threat by the Exiles lab entrance 1313 | -10/Mines | Discovered new exit (range 5) 1350 | -10/Mines | Found a hidden stash of uninstalled traps 1531 | -10/Mines | Discovered new exit (range 13) 1541 | -10/Mines | Learned Materials security intel 1877 | -10/Mines | Discovered new exit (range 4) 1893 | -10/Mines | Discovered new exit (range 6) 1992 | -10/Mines | Entered Exiles 2016 | -10/Exiles | Discovered new exit (range 15) 2034 | -10/Exiles | Met 8R-AWN 2063 | -10/Exiles | Met EX-HEX 2114 | -10/Exiles | Met EX-BIN 2133 | -10/Exiles | Aligned with FarCom system 2135 | -10/Exiles | Given EX-Vault access code 2174 | -10/Exiles | Opened EX-Vault 2189 | -10/Exiles | Found Latent Energy Streamer 2230 | -10/Exiles | Warned to stay clear of 0b10 Research branches 2382 | -10/Exiles | Met EX-DEC 2417 | -10/Exiles | Learned location of Zion (-7) 3301 | -10/Exiles | Discovered new exit (range 10) 3322 | -10/Exiles | Left Exiles lab with Latent Energy Streamer 3322 | -10/Exiles | Entered Mines 3461 | -9/Mines | Received a Rocket Launcher from a helpful Derelict 3685 | -9/Mines | Excavation squad dispatched 3685 | -9/Mines | A large section of the Mines collapsed 3935 | -9/Mines | Excavation squad dispatched 4185 | -9/Mines | Excavation squad dispatched 4266 | -9/Mines | Core integrity fell below 50% 4350 | -9/Mines | Found the Drone Emporium 4362 | -9/Mines | Found Prototype Device 4435 | -9/Mines | Excavation squad dispatched 4620 | -9/Mines | Discovered new exit (range 9) 4639 | -9/Mines | Entered Materials 4639 | -8/Materials | Evolved 4 slots: Propulsion x2, Utility x2 5164 | -8/Materials | Build established: Scavenger-Assassin 5239 | -8/Materials | Identified Bomb Drone Bay 5547 | -8/Materials | Discovered new exit (range 13) 5660 | -8/Materials | Entered Factory 5660 | -7/Factory | Evolved 2 slots: Propulsion x1, Utility x1 6530 | -7/Factory | Build established: Scavenger-Mutant 6609 | -7/Factory | Discovered new exit (range 14) 8214 | -7/Factory | Build established: Scavenger-Assassin 8524 | -7/Factory | Fabricated Imp. Light Armor Plating? 8633 | -7/Factory | Discovered new exit (range 8) 8698 | -7/Factory | Identified exit to Factory 8702 | -7/Factory | Garrison activated, responded to threat 9260 | -7/Factory | Build established: Assassin 9267 | -7/Factory | Identified exit to Lower Caves 9278 | -7/Factory | Entered Lower Caves 10171 | -7/Lower Caves | Learned Factory stockpile data 10429 | -7/Lower Caves | Discovered new exit (range 15) 10583 | -7/Lower Caves | Encountered a Warlord checkpoint 10596 | -7/Lower Caves | Identified exit to Lower Caves 10653 | -7/Lower Caves | Entered another Lower Caves area 10692 | -7/Lower Caves | Discovered exit to Factory (range 13) 11500 | -7/Lower Caves | Discovered new exit (range 16) 11594 | -7/Lower Caves | Identified exit to Zion 11848 | -7/Lower Caves | Entered Zion 11926 | -7/Zion | Discovered new exit (range 12) 11928 | -7/Zion | Given the Hacking Drone Bay 11930 | -7/Zion | Found Prototype Device 11953 | -7/Zion | Identified exit to Proximity Caves 12046 | -7/Zion | System corruption cleaned by Quarantine Array 12120 | -7/Zion | Identified Hacking Drone Bay 12127 | -7/Zion | Found Prototype Device 12128 | -7/Zion | Identified Mobile Refinery Mk. CCLXVII 12226 | -7/Zion | Learned location of Quarantine (-3) 12417 | -7/Zion | Build established: Mutant 12522 | -7/Zion | Given A8's code to call for help 12707 | -7/Zion | Found GAL Module 12788 | -7/Zion | Build established: Scavenger-Mutant 12974 | -7/Zion | Found Prototype Device 12981 | -7/Zion | Identified Phasing AFG 13450 | -7/Zion | Found CR-A16's Pointy Stick 13595 | -7/Zion | Rebuked by Imprinter 13901 | -7/Zion | Received a hallucinogenic algorithm 14024 | -7/Zion | Discovered new exit (range 3) 14024 | -7/Zion | Saw the warning signs outside the Deep Caves entrance 14028 | -7/Zion | Identified exit to Deep Caves 14339 | -7/Zion | Build established: Mutant 14434 | -7/Zion | Attacked by Zionites 14730 | -7/Zion | Destroyed Imprinter 14753 | -7/Zion | Extracted access codes from Imprinter's data core 14823 | -7/Zion | Entered Deep Caves 14920 | -7/Deep Caves | Build established: Scavenger-Mutant 15261 | -7/Deep Caves | Found Prototype Protection 15261 | -7/Deep Caves | Identified Zio. Heavy Carapace 15313 | -7/Deep Caves | Z-Facility disabled 15359 | -7/Deep Caves | Lost 3 parts (1p1n1w) 15367 | -7/Deep Caves | Found Prototype Protection 15367 | -7/Deep Caves | Identified Zio. Weapon Casing 15502 | -7/Deep Caves | Found Zio. Weapon Casing 15619 | -7/Deep Caves | Found Zio. Heavy Carapace 15790 | -7/Deep Caves | Build established: Mutant 16425 | -7/Deep Caves | Discovered new exit (range 7) 16518 | -7/Deep Caves | Spotted as-78830 16530 | -7/Deep Caves | Core integrity fell below 50% 16542 | -7/Deep Caves | Destroyed as-78830 16567 | -7/Deep Caves | Lost 3 parts (1n2u) 16772 | -7/Deep Caves | Spotted as-24397 16779 | -7/Deep Caves | Core integrity fell below 20% 16798 | -7/Deep Caves | Destroyed as-24397 16815 | -7/Deep Caves | Lost 3 parts (1p2u) 16961 | -7/Deep Caves | Triggered Deep Caves wall 16961 | -7/Deep Caves | Spotted AS-21719 16961 | -7/Deep Caves | Spotted AS-07580 16969 | -7/Deep Caves | Destroyed by as-35945 with Assembled F-torch Last Messages --------------- 16968_ Destroyed Imp. Heat Sink. 16968_ US-K38(g) destroyed. 16968_ as-41288 destroyed. 16968_ Destroyed Asb. Hover Unit. 16968_ as-32605 destroyed. 16968_ as-34830 destroyed. 16968_ as-34602 destroyed. 16968_ as-73245 destroyed. 16968_ as-26802 destroyed. 16968_ Destroyed Carbon-fiber Leg. 16968_ as-09141 destroyed. 16968_ as-73750 destroyed. 16968_ as-54180 destroyed. [Achievement: Killing Spree] 16968_ as-24388 destroyed. 16968_ Destroyed Asb. Hover Unit. 16968_ as-43369 destroyed. 16968_ as-31501 destroyed. 16968_ as-86720 destroyed. 16968_ as-02992 destroyed. Map ----- +----------------------------------------------------+ | ?????????????????????????????????????????? | | ?????????????????????????????????????????? | | ?????????????????????????????????????????# | | ?????????????? ?????????????????????????## | | ???????????? ????????????????????????# | | ???????????? ???????????????????????# | | ??????????? #??????????????????????# | | ??????????? ???###??????????####?# | | ?????????? #??# #?????????## ??# | | ?????????? ??# #????????## #??# | | ??????????" ?# #???????## #?## | | ????????? ## #?####??# ### | | ????????? ; ###""#??# | | ????????" #???# | | ????????# ###???# | | ?????????" ! "#?????## | | ?????????" ;#"#??????## | | ?????????" ###??????## | | ?????????" ##"""#???????# | | ????????"" ### ##???????## | | ??????### g ### ####?????## | | ???"""" l # #?????# | | ??? A ####?????# | | ??" ###?????# | | ??" a aaa #?????## | | ??" a@ ###??????# | | ??" a aa= ##???????## | | ??" A a ] g #????????## | | ??? a aa #?????????## | | ???"""" b * #??????????# | | ??????### ] #??????????# | | ????????"" ] #??????????## | | ?????????" #???????????## | | ?????????" #?????#####??# | | ?????????" * * ##???## ##?# | | ????????"" h #??## #?# | | ????????# s * * #?## ### | | ????????" * ### ## | | ????????" ## #### | | ????????" ** * | | ????????""" * * | | ????????" | | ????????"" = * "############ | | ????????" ##??????????? | | ????????"" ##???????????# | | ????????" " # #????????????# | | ????????" #### ## ## ##????????????# | | ????????""" ###??# ## ####?????????????# | | ?????????" ?????#### #????????????????? | | ?????????####??????????#?????????????????? | +----------------------------------------------------+ Best States ------------- Heat Dissipation 60 Energy Generation 27 Energy Capacity 290 Matter Stores 300 Matter Capacity 300 Sight Range 16 Robot Scan Range 15 Terrain Scan Range 16 Terrain Scan Density 85 Jamming Range 12 Armor Coverage 1200 Resistance: EM 15 Power Shielding 66 Propulsion Shielding 33 Weapon Shielding 100 Evasion (%) 55 Melee Accuracy 6 Recoil Reduction 5 Kinecelleration 30 Item Schematics ----------------- Lrn. Tractor Beam | -7/Factory | Scanalyzed Imp. Terrain Scanner | -7/Factory | Scanalyzed Imp. Signal Interpreter | -7/Factory | Scanalyzed Imp. Light Armor Plating | -7/Factory | Scanalyzed Med. Matter Pod | -7/Factory | Scanalyzed Hvy. Beamcaster | -7/Zion | Free Riot Gun | -7/Zion | Free Barrage Gun | -7/Zion | Free Enh. Flamer | -7/Zion | Free Plasma Flamer | -7/Zion | Free Robot Schematics ------------------ None Fabricated ------------ Imp. Light Armor Plating | x2 | -7/Factory Alien Tech Used ----------------- None Achievements -------------- Adventurer Killing Spree Signs Are For Wimps That's One Door That Should Stay Closed Challenges ------------ None Game ------ Seed HelicalWeaponDoomcannon Manual? 0 Play Time 03:38:39 Cumulative 40.8 hours Start 2023.07.23 @ 23:26:29 End 2023.07.30 @ 05:26:24 Sessions 5 Manual Loads 0 Difficulty Rogue Special Mode None Game No. 26 Rogue 26 Adventurer 0 Explorer 0 Win Type - Total 1 Types 1/0/0/0/0/0/0/0/0 Lore% 22 Gallery% 35 Achievement% 29 Wizard Run 0 Options --------- ASCII 0 Keyboard 1 Movement Numpad Keybinds 0 Fullscreen 2 Font 24/Terminus Map View 76x50 Tactical HUD 1 Map Filters NONE Filters NONE Steam 1 RUN: 27887f45-4bba-4071-8bc4-57d2a397bcee